[Event "Early-Titled-Tuesday-Blitz-November-28-2023"]
[Site "Chess.com"]
[Date "2023.11.28"]
[Round "11"]
[White "PabloZarnicki"]
[Black "GMthekingindian"]
[Result "1-0"]
[WhiteElo "2544"]
[BlackElo "2336"]
[TimeControl "180+1"]
[EndTime "10:11:30 PST"]
[Termination "PabloZarnicki won by checkmate"]

1. e4 {[%clk 0:02:52.7]} 1... c5 {[%clk 0:02:59.8]} 2. Nf3 {[%clk 0:02:52.5]}
2... d6 {[%clk 0:03:00.4]} 3. c3 {[%clk 0:02:51.3]} 3... Nf6 {[%clk 0:03:00.2]}
4. Be2 {[%clk 0:02:50.1]} 4... g6 {[%clk 0:02:57.5]} 5. O-O {[%clk 0:02:48.8]}
5... Bg7 {[%clk 0:02:57.8]} 6. d3 {[%clk 0:02:40.9]} 6... O-O {[%clk 0:02:57.2]}
7. Re1 {[%clk 0:02:41.3]} 7... Nc6 {[%clk 0:02:55.2]} 8. h3 {[%clk 0:02:39.5]}
8... e5 {[%clk 0:02:44.1]} 9. Bf1 {[%clk 0:02:35.2]} 9... Re8 {[%clk 0:02:43.2]}
10. Nbd2 {[%clk 0:02:29.2]} 10... d5 {[%clk 0:02:35.4]} 11. exd5 {[%clk
0:02:25.1]} 11... Nxd5 {[%clk 0:02:36.3]} 12. Nc4 {[%clk 0:02:24.5]} 12... b5
{[%clk 0:02:23.1]} 13. Ne3 {[%clk 0:02:23]} 13... Bb7 {[%clk 0:02:18.3]} 14. a4
{[%clk 0:02:22.5]} 14... a6 {[%clk 0:02:16.1]} 15. Qb3 {[%clk 0:02:13]} 15...
Na5 {[%clk 0:02:07.5]} 16. Qc2 {[%clk 0:02:13.1]} 16... b4 {[%clk 0:02:00.7]}
17. Ng4 {[%clk 0:02:09.1]} 17... Qc7 {[%clk 0:01:42.9]} 18. c4 {[%clk
0:01:58.9]} 18... b3 {[%clk 0:01:26.2]} 19. Qd1 {[%clk 0:01:50.9]} 19... Nb4
{[%clk 0:01:23.8]} 20. Bg5 {[%clk 0:01:37.8]} 20... Qd6 {[%clk 0:01:08.8]} 21.
Rc1 {[%clk 0:01:09.6]} 21... f5 {[%clk 0:00:56.7]} 22. Nh6+ {[%clk 0:01:04.6]}
22... Kf8 {[%clk 0:00:51.4]} 23. g3 {[%clk 0:01:02.7]} 23... Nc2 {[%clk
0:00:40.4]} 24. Bg2 {[%clk 0:00:56.3]} 24... Nxe1 {[%clk 0:00:35.8]} 25. Qxe1
{[%clk 0:00:52.7]} 25... Nc6 {[%clk 0:00:23.1]} 26. Nh4 {[%clk 0:00:49.5]} 26...
Rab8 {[%clk 0:00:15.8]} 27. Bd5 {[%clk 0:00:32.8]} 27... Nd4 {[%clk 0:00:14.8]}
28. Nf7 {[%clk 0:00:19.3]} 28... Qd7 {[%clk 0:00:10.2]} 29. f4 {[%clk
0:00:10.6]} 29... Bxd5 {[%clk 0:00:09.5]} 30. Nxe5 {[%clk 0:00:10.9]} 30... Bxe5
{[%clk 0:00:07.5]} 31. fxe5 {[%clk 0:00:11.8]} 31... Bc6 {[%clk 0:00:06.1]} 32.
Bf6 {[%clk 0:00:11.4]} 32... Nf3+ {[%clk 0:00:06.1]} 33. Nxf3 {[%clk 0:00:11.2]}
33... Bxf3 {[%clk 0:00:07]} 34. Qe3 {[%clk 0:00:10.8]} 34... Qc6 {[%clk
0:00:07.3]} 35. Qh6+ {[%clk 0:00:10.5]} 35... Kf7 {[%clk 0:00:07]} 36. Kf2
{[%clk 0:00:10.7]} 36... Rg8 {[%clk 0:00:06.9]} 37. Qxh7+ {[%clk 0:00:10.9]}
37... Ke6 {[%clk 0:00:06.6]} 38. Qe7# {[%clk 0:00:11]} 1-0

[Event "Early-Titled-Tuesday-Blitz-November-28-2023"]
[Site "Chess.com"]
[Date "2023.11.28"]
[Round "11"]
[White "Maxfan2008"]
[Black "Laico"]
[Result "1-0"]
[WhiteElo "2538"]
[BlackElo "2346"]
[TimeControl "180+1"]
[EndTime "10:11:32 PST"]
[Termination "Maxfan2008 won by resignation"]

1. d4 {[%clk 0:03:00.9]} 1... e6 {[%clk 0:03:00.5]} 2. c4 {[%clk 0:03:01]} 2...
f5 {[%clk 0:03:01.1]} 3. Nf3 {[%clk 0:02:58.3]} 3... b6 {[%clk 0:03:01.6]} 4. g3
{[%clk 0:02:56.4]} 4... Bb7 {[%clk 0:03:02]} 5. Bg2 {[%clk 0:02:57.1]} 5... Nf6
{[%clk 0:03:02.4]} 6. O-O {[%clk 0:02:57.3]} 6... Be7 {[%clk 0:03:03]} 7. Nc3
{[%clk 0:02:57]} 7... Ne4 {[%clk 0:03:03.7]} 8. d5 {[%clk 0:02:42.1]} 8... Nxc3
{[%clk 0:03:01]} 9. bxc3 {[%clk 0:02:43]} 9... O-O {[%clk 0:02:56.4]} 10. Nd4
{[%clk 0:02:41.9]} 10... Qc8 {[%clk 0:02:46.9]} 11. Qb3 {[%clk 0:02:17.4]} 11...
Na6 {[%clk 0:02:16.3]} 12. dxe6 {[%clk 0:02:07.8]} 12... Bxg2 {[%clk 0:02:09.6]}
13. c5 {[%clk 0:01:50.9]} 13... Nxc5 {[%clk 0:01:44.5]} 14. exd7+ {[%clk
0:01:41]} 14... Nxb3 {[%clk 0:01:41.8]} 15. dxc8=Q {[%clk 0:01:40.9]} 15...
Raxc8 {[%clk 0:01:34.2]} 16. axb3 {[%clk 0:01:36.8]} 16... Bxf1 {[%clk
0:01:33.7]} 17. Kxf1 {[%clk 0:01:32.6]} 17... a5 {[%clk 0:01:33]} 18. Nc6 {[%clk
0:01:24.9]} 18... Bd6 {[%clk 0:01:29.7]} 19. Be3 {[%clk 0:01:20.9]} 19... Rce8
{[%clk 0:01:24.8]} 20. b4 {[%clk 0:01:18.6]} 20... axb4 {[%clk 0:01:22.1]} 21.
cxb4 {[%clk 0:01:19.5]} 21... f4 {[%clk 0:01:22.3]} 22. Bxf4 {[%clk 0:01:14.7]}
22... Bxf4 {[%clk 0:01:23.2]} 23. gxf4 {[%clk 0:01:14.7]} 23... Rxf4 {[%clk
0:01:21.6]} 24. Ra7 {[%clk 0:01:12.6]} 24... Rf7 {[%clk 0:00:59.4]} 25. e3
{[%clk 0:01:07.9]} 25... g5 {[%clk 0:00:54.8]} 26. Kg2 {[%clk 0:01:05.1]} 26...
Kg7 {[%clk 0:00:54.3]} 27. h3 {[%clk 0:01:01.1]} 27... Re6 {[%clk 0:00:45.3]}
28. Nd8 {[%clk 0:00:57]} 28... Ree7 {[%clk 0:00:32.3]} 29. Nxf7 {[%clk
0:00:57.2]} 29... Kxf7 {[%clk 0:00:31.9]} 30. Kf3 {[%clk 0:00:54.7]} 30... h5
{[%clk 0:00:30.5]} 31. Ra8 {[%clk 0:00:50.7]} 31... Kg7 {[%clk 0:00:23]} 32. Rc8
{[%clk 0:00:48.1]} 32... Rf7+ {[%clk 0:00:19.8]} 33. Ke4 {[%clk 0:00:47]} 33...
Kg6 {[%clk 0:00:15.4]} 34. f4 {[%clk 0:00:44.1]} 34... Re7+ {[%clk 0:00:14.6]}
35. Kf3 {[%clk 0:00:41.1]} 35... gxf4 {[%clk 0:00:11.9]} 36. exf4 {[%clk
0:00:41.7]} 36... Kf6 {[%clk 0:00:10.6]} 37. h4 {[%clk 0:00:38.8]} 37... Ke6
{[%clk 0:00:10.4]} 38. Rh8 {[%clk 0:00:37.6]} 38... Kd5 {[%clk 0:00:09.3]} 39.
Rxh5+ {[%clk 0:00:38.1]} 39... Kc4 {[%clk 0:00:10.2]} 40. b5 {[%clk 0:00:37.6]}
40... Rd7 {[%clk 0:00:06.7]} 41. Kg4 {[%clk 0:00:36.3]} 41... Rd1 {[%clk
0:00:05.1]} 42. Re5 {[%clk 0:00:31.9]} 42... Rg1+ {[%clk 0:00:04.4]} 43. Kf5
{[%clk 0:00:32]} 43... Rg8 {[%clk 0:00:02.5]} 44. h5 {[%clk 0:00:31.5]} 1-0

[Event "Early-Titled-Tuesday-Blitz-November-28-2023"]
[Site "Chess.com"]
[Date "2023.11.28"]
[Round "11"]
[White "jcibarra"]
[Black "Gabrielian_Artur"]
[Result "1-0"]
[WhiteElo "2904"]
[BlackElo "2723"]
[TimeControl "180+1"]
[EndTime "10:11:38 PST"]
[Termination "jcibarra won by resignation"]

1. e4 {[%clk 0:02:54.6]} 1... c5 {[%clk 0:02:59.1]} 2. Nf3 {[%clk 0:02:54.2]}
2... d6 {[%clk 0:02:59.4]} 3. c3 {[%clk 0:02:53.3]} 3... Nf6 {[%clk 0:02:59]} 4.
h3 {[%clk 0:02:54.1]} 4... g6 {[%clk 0:02:59]} 5. Bd3 {[%clk 0:02:53.6]} 5...
Bg7 {[%clk 0:02:59.2]} 6. Bc2 {[%clk 0:02:53.9]} 6... O-O {[%clk 0:02:59.3]} 7.
d4 {[%clk 0:02:53.8]} 7... cxd4 {[%clk 0:02:58.5]} 8. cxd4 {[%clk 0:02:54.7]}
8... Nc6 {[%clk 0:02:53.4]} 9. O-O {[%clk 0:02:54.7]} 9... Nb4 {[%clk
0:02:52.4]} 10. Bb3 {[%clk 0:02:54.9]} 10... a5 {[%clk 0:02:46.7]} 11. Nc3
{[%clk 0:02:52.8]} 11... b5 {[%clk 0:02:38.3]} 12. a3 {[%clk 0:02:41]} 12... Na6
{[%clk 0:02:30.3]} 13. e5 {[%clk 0:02:26.7]} 13... dxe5 {[%clk 0:02:25.5]} 14.
dxe5 {[%clk 0:02:26.7]} 14... Qxd1 {[%clk 0:02:21.3]} 15. Rxd1 {[%clk
0:02:24.1]} 15... Nd7 {[%clk 0:02:18.7]} 16. e6 {[%clk 0:02:22]} 16... Ndc5
{[%clk 0:02:06.9]} 17. exf7+ {[%clk 0:02:21.9]} 17... Kh8 {[%clk 0:02:07.3]} 18.
Bd5 {[%clk 0:02:21.1]} 18... Bb7 {[%clk 0:01:51.4]} 19. Bxb7 {[%clk 0:02:14.6]}
19... Nxb7 {[%clk 0:01:51.5]} 20. Nxb5 {[%clk 0:02:07.4]} 20... Nac5 {[%clk
0:01:46]} 21. Rb1 {[%clk 0:01:58.9]} 21... a4 {[%clk 0:01:42.6]} 22. Be3 {[%clk
0:01:54.1]} 22... Rxf7 {[%clk 0:01:39.3]} 23. Bd4 {[%clk 0:01:53.4]} 23... Bxd4
{[%clk 0:01:19.6]} 24. Rxd4 {[%clk 0:01:52.5]} 24... Nb3 {[%clk 0:01:14.2]} 25.
Rb4 {[%clk 0:01:50.2]} 25... N7c5 {[%clk 0:01:13.5]} 26. Nc3 {[%clk 0:01:46.5]}
26... Ra6 {[%clk 0:00:44.4]} 27. Rd1 {[%clk 0:01:43.5]} 27... h6 {[%clk
0:00:43.9]} 28. Ne5 {[%clk 0:01:22.1]} 28... Rf5 {[%clk 0:00:41]} 29. Nd7 {[%clk
0:01:13.6]} 29... Kg7 {[%clk 0:00:29.2]} 30. Nxc5 {[%clk 0:01:06.1]} 30... Nxc5
{[%clk 0:00:29.4]} 31. Rdd4 {[%clk 0:01:04.3]} 31... e5 {[%clk 0:00:16.7]} 32.
Rdc4 {[%clk 0:00:44.4]} 32... Nd3 {[%clk 0:00:16.9]} 33. Rb7+ {[%clk 0:00:43.7]}
33... Rf7 {[%clk 0:00:15.1]} 34. Rxf7+ {[%clk 0:00:37.8]} 34... Kxf7 {[%clk
0:00:16]} 35. Nxa4 {[%clk 0:00:38.5]} 35... Rd6 {[%clk 0:00:14.5]} 36. b4 {[%clk
0:00:34.7]} 36... Nf4 {[%clk 0:00:13.2]} 37. b5 {[%clk 0:00:27.8]} 37... Rd1+
{[%clk 0:00:12.5]} 38. Kh2 {[%clk 0:00:28.4]} 38... Rd2 {[%clk 0:00:12.7]} 39.
b6 {[%clk 0:00:26.5]} 39... Rd7 {[%clk 0:00:04.8]} 40. Nc5 {[%clk 0:00:24]}
40... Rd8 {[%clk 0:00:02.6]} 41. b7 {[%clk 0:00:22.9]} 1-0

[Event "Early-Titled-Tuesday-Blitz-November-28-2023"]
[Site "Chess.com"]
[Date "2023.11.28"]
[Round "11"]
[White "Kildepiotr"]
[Black "Cheer_Down"]
[Result "1/2-1/2"]
[WhiteElo "2683"]
[BlackElo "2508"]
[TimeControl "180+1"]
[EndTime "10:11:38 PST"]
[Termination "Game drawn by stalemate"]

1. Nf3 {[%clk 0:02:59.2]} 1... d5 {[%clk 0:02:59.7]} 2. g3 {[%clk 0:02:59.6]}
2... Nf6 {[%clk 0:02:58.9]} 3. Bg2 {[%clk 0:03:00.3]} 3... e6 {[%clk 0:02:59.2]}
4. O-O {[%clk 0:03:01.1]} 4... Be7 {[%clk 0:02:59.5]} 5. d3 {[%clk 0:03:02]}
5... O-O {[%clk 0:02:59.4]} 6. Nbd2 {[%clk 0:03:02.7]} 6... c5 {[%clk
0:02:59.6]} 7. e4 {[%clk 0:03:03.4]} 7... Nc6 {[%clk 0:02:59.4]} 8. Re1 {[%clk
0:03:02.8]} 8... b5 {[%clk 0:02:58.5]} 9. e5 {[%clk 0:03:02.8]} 9... Nd7 {[%clk
0:02:58.2]} 10. Nf1 {[%clk 0:03:03.7]} 10... Qc7 {[%clk 0:02:55.3]} 11. Bf4
{[%clk 0:03:03.6]} 11... Bb7 {[%clk 0:02:51.4]} 12. h4 {[%clk 0:03:02.7]} 12...
Rfc8 {[%clk 0:02:49.6]} 13. h5 {[%clk 0:03:01.7]} 13... h6 {[%clk 0:02:49.2]}
14. g4 {[%clk 0:03:01.9]} 14... Qd8 {[%clk 0:02:39.9]} 15. Qd2 {[%clk
0:02:57.5]} 15... a5 {[%clk 0:02:28.9]} 16. Ng3 {[%clk 0:02:54]} 16... Ra6
{[%clk 0:02:08]} 17. g5 {[%clk 0:02:50]} 17... hxg5 {[%clk 0:02:08.2]} 18. Nxg5
{[%clk 0:02:50]} 18... Ncxe5 {[%clk 0:02:00.7]} 19. h6 {[%clk 0:02:37.3]} 19...
gxh6 {[%clk 0:01:53.5]} 20. Nh3 {[%clk 0:02:31]} 20... Ng6 {[%clk 0:01:44]} 21.
Bxh6 {[%clk 0:02:30.7]} 21... c4 {[%clk 0:01:32.5]} 22. d4 {[%clk 0:02:27.2]}
22... c3 {[%clk 0:01:29.9]} 23. bxc3 {[%clk 0:02:27.1]} 23... Rac6 {[%clk
0:01:30.1]} 24. Nf4 {[%clk 0:02:16.6]} 24... Ndf8 {[%clk 0:01:26.2]} 25. Nfe2
{[%clk 0:01:45.3]} 25... b4 {[%clk 0:01:21.4]} 26. Rab1 {[%clk 0:01:41.9]} 26...
Nh7 {[%clk 0:01:14.2]} 27. a3 {[%clk 0:01:35.5]} 27... Ba6 {[%clk 0:01:08.2]}
28. axb4 {[%clk 0:01:34.1]} 28... axb4 {[%clk 0:01:08.2]} 29. Qe3 {[%clk
0:01:32.8]} 29... Bxe2 {[%clk 0:01:03.8]} 30. Nxe2 {[%clk 0:01:33.7]} 30... bxc3
{[%clk 0:00:57.9]} 31. Rb7 {[%clk 0:01:29.7]} 31... Bg5 {[%clk 0:00:56.1]} 32.
Qh3 {[%clk 0:01:28.4]} 32... Bxh6 {[%clk 0:00:53.5]} 33. Qxh6 {[%clk 0:01:29.3]}
33... Qg5 {[%clk 0:00:53]} 34. Qxg5 {[%clk 0:01:16.3]} 34... Nxg5 {[%clk
0:00:52.6]} 35. Ra1 {[%clk 0:01:15]} 35... R6c7 {[%clk 0:00:47.7]} 36. Rb3
{[%clk 0:01:13.4]} 36... Nh4 {[%clk 0:00:39.9]} 37. Raa3 {[%clk 0:01:09]} 37...
Nhf3+ {[%clk 0:00:38.5]} 38. Kh1 {[%clk 0:01:05.7]} 38... Nd2 {[%clk 0:00:36.5]}
39. Rxc3 {[%clk 0:01:04.4]} 39... Nde4 {[%clk 0:00:35.3]} 40. Rxc7 {[%clk
0:00:58]} 40... Rxc7 {[%clk 0:00:35.6]} 41. Bxe4 {[%clk 0:00:53.1]} 41... Nxe4
{[%clk 0:00:35.1]} 42. f3 {[%clk 0:00:51.5]} 42... Rxc2 {[%clk 0:00:27.7]} 43.
fxe4 {[%clk 0:00:51.8]} 43... Rxe2 {[%clk 0:00:27.6]} 44. exd5 {[%clk
0:00:52.4]} 44... exd5 {[%clk 0:00:27.2]} 45. Ra5 {[%clk 0:00:52.6]} 45... Kg7
{[%clk 0:00:26.1]} 46. Rxd5 {[%clk 0:00:52.8]} 46... Kg6 {[%clk 0:00:26.3]} 47.
Kg1 {[%clk 0:00:52.4]} 47... f5 {[%clk 0:00:26]} 48. Kf1 {[%clk 0:00:52.8]}
48... Rd2 {[%clk 0:00:26.1]} 49. Ke1 {[%clk 0:00:52.3]} 49... Ra2 {[%clk
0:00:24.5]} 50. Re5 {[%clk 0:00:49.9]} 50... Kf6 {[%clk 0:00:24.2]} 51. Re8
{[%clk 0:00:48.7]} 51... Ra4 {[%clk 0:00:22.3]} 52. d5 {[%clk 0:00:46.3]} 52...
Re4+ {[%clk 0:00:20.2]} 53. Rxe4 {[%clk 0:00:45.8]} 53... fxe4 {[%clk
0:00:21.1]} 54. Ke2 {[%clk 0:00:46.4]} 54... Ke5 {[%clk 0:00:21.4]} 55. d6
{[%clk 0:00:45.8]} 55... Kxd6 {[%clk 0:00:21.6]} 56. Ke3 {[%clk 0:00:46.3]}
56... Kd5 {[%clk 0:00:21.9]} 57. Ke2 {[%clk 0:00:46.8]} 57... Kd4 {[%clk
0:00:21.5]} 58. Kd2 {[%clk 0:00:47.2]} 58... Ke5 {[%clk 0:00:21.8]} 59. Ke3
{[%clk 0:00:47.3]} 59... Kf5 {[%clk 0:00:21.8]} 60. Ke2 {[%clk 0:00:47.8]} 60...
Kf4 {[%clk 0:00:22.2]} 61. Kf2 {[%clk 0:00:48.4]} 61... e3+ {[%clk 0:00:22]} 62.
Ke2 {[%clk 0:00:49]} 62... Ke4 {[%clk 0:00:22.5]} 63. Ke1 {[%clk 0:00:49.7]}
63... Kd4 {[%clk 0:00:23.1]} 64. Ke2 {[%clk 0:00:50.1]} 64... Ke4 {[%clk
0:00:23.1]} 65. Ke1 {[%clk 0:00:50.7]} 65... Kf3 {[%clk 0:00:23.7]} 66. Kf1
{[%clk 0:00:51.1]} 66... e2+ {[%clk 0:00:24.4]} 67. Ke1 {[%clk 0:00:51.7]} 67...
Ke3 {[%clk 0:00:25]} 1/2-1/2

[Event "Early-Titled-Tuesday-Blitz-November-28-2023"]
[Site "Chess.com"]
[Date "2023.11.28"]
[Round "11"]
[White "Abund"]
[Black "vi_pranav"]
[Result "0-1"]
[WhiteElo "2778"]
[BlackElo "3026"]
[TimeControl "180+1"]
[EndTime "10:11:41 PST"]
[Termination "vi_pranav won on time"]

1. e4 {[%clk 0:03:00.9]} 1... c6 {[%clk 0:02:58.1]} 2. d4 {[%clk 0:03:01.1]}
2... d5 {[%clk 0:02:59]} 3. exd5 {[%clk 0:03:02]} 3... cxd5 {[%clk 0:02:59]} 4.
Bd3 {[%clk 0:03:02.6]} 4... Nc6 {[%clk 0:02:56.9]} 5. c3 {[%clk 0:03:03.1]} 5...
e5 {[%clk 0:02:55.4]} 6. dxe5 {[%clk 0:03:03]} 6... Nxe5 {[%clk 0:02:56.3]} 7.
Bb5+ {[%clk 0:03:01.7]} 7... Nc6 {[%clk 0:02:54.5]} 8. Nf3 {[%clk 0:02:58.4]}
8... Nf6 {[%clk 0:02:54.8]} 9. O-O {[%clk 0:02:56.3]} 9... Be7 {[%clk
0:02:55.1]} 10. Ne5 {[%clk 0:02:45]} 10... Bd7 {[%clk 0:02:41.1]} 11. Nxd7
{[%clk 0:02:40.4]} 11... Qxd7 {[%clk 0:02:42]} 12. Nd2 {[%clk 0:02:38.5]} 12...
O-O {[%clk 0:02:38.6]} 13. Nf3 {[%clk 0:02:38.8]} 13... h6 {[%clk 0:02:38.7]}
14. Re1 {[%clk 0:02:33.8]} 14... Bd6 {[%clk 0:02:35.6]} 15. Be3 {[%clk
0:02:32.1]} 15... Rfe8 {[%clk 0:02:34.3]} 16. Qd3 {[%clk 0:02:25.4]} 16... a6
{[%clk 0:02:28.9]} 17. Ba4 {[%clk 0:02:25.5]} 17... Qg4 {[%clk 0:02:26]} 18. Bc2
{[%clk 0:02:20.6]} 18... Rad8 {[%clk 0:02:25]} 19. h3 {[%clk 0:02:17.8]} 19...
Qh5 {[%clk 0:02:20.1]} 20. Bb6 {[%clk 0:02:06.4]} 20... Rb8 {[%clk 0:02:17.9]}
21. Rad1 {[%clk 0:01:54]} 21... Bf8 {[%clk 0:02:03.5]} 22. Nd4 {[%clk
0:01:44.1]} 22... Ne5 {[%clk 0:01:56.8]} 23. Qf5 {[%clk 0:01:30.2]} 23... Qxf5
{[%clk 0:01:51.2]} 24. Bxf5 {[%clk 0:01:31.1]} 24... Bd6 {[%clk 0:01:41.9]} 25.
b3 {[%clk 0:01:15.9]} 25... g6 {[%clk 0:01:40.9]} 26. Bb1 {[%clk 0:01:07.3]}
26... Ned7 {[%clk 0:01:39.6]} 27. Ba5 {[%clk 0:00:59.9]} 27... Kg7 {[%clk
0:01:32]} 28. c4 {[%clk 0:00:56.8]} 28... dxc4 {[%clk 0:01:31.8]} 29. bxc4
{[%clk 0:00:51.2]} 29... Rxe1+ {[%clk 0:01:25]} 30. Bxe1 {[%clk 0:00:50.6]}
30... Be5 {[%clk 0:01:14.6]} 31. Nf3 {[%clk 0:00:50.2]} 31... Bb2 {[%clk
0:01:11.8]} 32. Bd3 {[%clk 0:00:37.8]} 32... Nc5 {[%clk 0:01:09.8]} 33. Be2
{[%clk 0:00:36.3]} 33... Nfe4 {[%clk 0:01:08.4]} 34. Rb1 {[%clk 0:00:29.7]}
34... Bc3 {[%clk 0:01:06.8]} 35. Kf1 {[%clk 0:00:25.3]} 35... Bxe1 {[%clk
0:01:05.1]} 36. Rxe1 {[%clk 0:00:23.9]} 36... Nc3 {[%clk 0:01:05.2]} 37. a3
{[%clk 0:00:23.9]} 37... Rd8 {[%clk 0:01:04.6]} 38. Rc1 {[%clk 0:00:23]} 38...
Nxe2 {[%clk 0:00:59.3]} 39. Kxe2 {[%clk 0:00:23.1]} 39... Rd3 {[%clk 0:01:00]}
40. Rd1 {[%clk 0:00:15.6]} 40... Rxa3 {[%clk 0:00:59.6]} 41. Rd5 {[%clk
0:00:15.5]} 41... b6 {[%clk 0:00:54.4]} 42. Rd6 {[%clk 0:00:13.2]} 42... Rb3
{[%clk 0:00:53.2]} 43. Rc6 {[%clk 0:00:11.1]} 43... a5 {[%clk 0:00:52.7]} 44.
Ne5 {[%clk 0:00:10.3]} 44... Ne6 {[%clk 0:00:49.8]} 45. Rd6 {[%clk 0:00:07.9]}
45... Kf6 {[%clk 0:00:44.2]} 46. Nd3 {[%clk 0:00:01.3]} 46... Ke7 {[%clk
0:00:41.7]} 0-1

[Event "Early-Titled-Tuesday-Blitz-November-28-2023"]
[Site "Chess.com"]
[Date "2023.11.28"]
[Round "11"]
[White "NowInChess"]
[Black "RebecaJimnz"]
[Result "1-0"]
[WhiteElo "2191"]
[BlackElo "2279"]
[TimeControl "180+1"]
[EndTime "10:11:41 PST"]
[Termination "NowInChess won by resignation"]

1. e4 {[%clk 0:03:00.9]} 1... c5 {[%clk 0:02:57.2]} 2. d3 {[%clk 0:03:00.9]}
2... Nc6 {[%clk 0:02:57.2]} 3. g3 {[%clk 0:03:01.5]} 3... g6 {[%clk 0:02:58.1]}
4. Bg2 {[%clk 0:03:01.7]} 4... Bg7 {[%clk 0:02:59]} 5. f4 {[%clk 0:03:02.2]}
5... Nf6 {[%clk 0:02:58]} 6. Nf3 {[%clk 0:03:02.2]} 6... O-O {[%clk 0:02:58]} 7.
O-O {[%clk 0:03:02.4]} 7... d6 {[%clk 0:02:58.6]} 8. Nc3 {[%clk 0:03:01.7]} 8...
Rb8 {[%clk 0:02:59.1]} 9. a4 {[%clk 0:03:00.8]} 9... a6 {[%clk 0:02:58.6]} 10.
h3 {[%clk 0:03:01.2]} 10... Nd4 {[%clk 0:02:56.4]} 11. Ne2 {[%clk 0:02:48.2]}
11... Nxf3+ {[%clk 0:02:49.7]} 12. Rxf3 {[%clk 0:02:48.1]} 12... b5 {[%clk
0:02:49.5]} 13. axb5 {[%clk 0:02:48]} 13... axb5 {[%clk 0:02:50.4]} 14. g4
{[%clk 0:02:35.2]} 14... b4 {[%clk 0:02:48.3]} 15. f5 {[%clk 0:02:27.2]} 15...
Nd7 {[%clk 0:02:46.7]} 16. g5 {[%clk 0:02:10.4]} 16... Ne5 {[%clk 0:02:44.8]}
17. Rf2 {[%clk 0:02:05.9]} 17... Nc6 {[%clk 0:02:32.9]} 18. Kh1 {[%clk
0:01:43.7]} 18... Nd4 {[%clk 0:02:24]} 19. Ng3 {[%clk 0:01:33.1]} 19... Be5
{[%clk 0:02:12.6]} 20. Bf4 {[%clk 0:01:30]} 20... Bg7 {[%clk 0:02:05.2]} 21. Ra7
{[%clk 0:01:18.4]} 21... gxf5 {[%clk 0:02:03.1]} 22. exf5 {[%clk 0:00:54.1]}
22... Nxf5 {[%clk 0:02:03.2]} 23. Nxf5 {[%clk 0:00:50.5]} 23... Bxf5 {[%clk
0:02:04.1]} 24. Bxd6 {[%clk 0:00:48.3]} 24... Qxd6 {[%clk 0:02:03.9]} 25. Rxf5
{[%clk 0:00:47.4]} 25... Bxb2 {[%clk 0:02:02.8]} 26. Be4 {[%clk 0:00:21.6]}
26... Bd4 {[%clk 0:00:50.8]} 27. Qh5 {[%clk 0:00:19.3]} 27... Qg6 {[%clk
0:00:50.8]} 28. Qh4 {[%clk 0:00:16.9]} 28... Qg7 {[%clk 0:00:50.1]} 29. Rf1
{[%clk 0:00:11.3]} 29... e6 {[%clk 0:00:25.2]} 30. Rf6 {[%clk 0:00:11]} 30...
Ra8 {[%clk 0:00:09.7]} 31. Rxa8 {[%clk 0:00:08.9]} 31... Rxa8 {[%clk 0:00:09.8]}
32. Bxa8 {[%clk 0:00:09.1]} 32... Bxf6 {[%clk 0:00:10.2]} 33. gxf6 {[%clk
0:00:09.1]} 33... Qg6 {[%clk 0:00:10.7]} 34. Qg4 {[%clk 0:00:08.7]} 34... Qxg4
{[%clk 0:00:10.7]} 35. hxg4 {[%clk 0:00:09.4]} 35... h6 {[%clk 0:00:11.3]} 36.
Be4 {[%clk 0:00:08.6]} 36... Kf8 {[%clk 0:00:11.8]} 37. Kg2 {[%clk 0:00:08.8]}
37... Ke8 {[%clk 0:00:12.7]} 38. Kf3 {[%clk 0:00:09.2]} 38... Kd7 {[%clk
0:00:13.6]} 39. Kf4 {[%clk 0:00:09.7]} 39... Kd6 {[%clk 0:00:14.5]} 40. Bh7
{[%clk 0:00:08.9]} 40... Kd5 {[%clk 0:00:14.2]} 41. Bg8 {[%clk 0:00:09]} 41...
Kd4 {[%clk 0:00:13.2]} 42. Bxf7 {[%clk 0:00:09.9]} 42... Kc3 {[%clk 0:00:13.7]}
43. Bxe6 {[%clk 0:00:10.5]} 43... Kxc2 {[%clk 0:00:14.4]} 44. f7 {[%clk
0:00:11.4]} 44... b3 {[%clk 0:00:15]} 45. f8=Q {[%clk 0:00:12.2]} 45... b2
{[%clk 0:00:15.2]} 46. Qxc5+ {[%clk 0:00:12.7]} 46... Kd2 {[%clk 0:00:15.2]} 47.
Qb4+ {[%clk 0:00:12.7]} 1-0

[Event "Early-Titled-Tuesday-Blitz-November-28-2023"]
[Site "Chess.com"]
[Date "2023.11.28"]
[Round "11"]
[White "jcmesafischer"]
[Black "Jamal-Jamal-Jamal"]
[Result "1-0"]
[WhiteElo "2357"]
[BlackElo "2464"]
[TimeControl "180+1"]
[EndTime "10:11:47 PST"]
[Termination "jcmesafischer won on time"]

1. e4 {[%clk 0:02:56.7]} 1... e6 {[%clk 0:02:59.9]} 2. Qe2 {[%clk 0:02:56.6]}
2... e5 {[%clk 0:02:58.3]} 3. Nf3 {[%clk 0:02:55.9]} 3... Nc6 {[%clk 0:02:58.2]}
4. c3 {[%clk 0:02:54.3]} 4... Bc5 {[%clk 0:02:45.7]} 5. Qb5 {[%clk 0:02:46.9]}
5... Qe7 {[%clk 0:02:39.5]} 6. Bc4 {[%clk 0:02:38.7]} 6... Nf6 {[%clk
0:02:38.3]} 7. d3 {[%clk 0:02:34.2]} 7... a6 {[%clk 0:02:38.7]} 8. Qa4 {[%clk
0:02:33.2]} 8... O-O {[%clk 0:02:33.9]} 9. Bg5 {[%clk 0:02:28.6]} 9... d6 {[%clk
0:02:12.1]} 10. Qc2 {[%clk 0:02:24.1]} 10... b5 {[%clk 0:02:11.1]} 11. Bd5
{[%clk 0:02:23]} 11... Bb7 {[%clk 0:02:08.3]} 12. b4 {[%clk 0:02:22.4]} 12...
Bb6 {[%clk 0:02:06.9]} 13. Nh4 {[%clk 0:02:14.8]} 13... h6 {[%clk 0:01:23.6]}
14. Ng6 {[%clk 0:01:01.5]} 14... Qd8 {[%clk 0:01:16.4]} 15. Bxf6 {[%clk
0:01:01]} 15... Qxf6 {[%clk 0:01:15.6]} 16. Nxf8 {[%clk 0:01:00.9]} 16... Rxf8
{[%clk 0:01:10.6]} 17. Qe2 {[%clk 0:00:59.8]} 17... Qg5 {[%clk 0:00:53.2]} 18.
g3 {[%clk 0:00:50.9]} 18... Qc1+ {[%clk 0:00:47.8]} 19. Qd1 {[%clk 0:00:48.8]}
19... Qb2 {[%clk 0:00:48.2]} 20. Nd2 {[%clk 0:00:21]} 20... Qxc3 {[%clk
0:00:34.4]} 21. Rc1 {[%clk 0:00:17.9]} 21... Qd4 {[%clk 0:00:34.7]} 22. O-O
{[%clk 0:00:10.7]} 22... Nd8 {[%clk 0:00:21.2]} 23. Bxb7 {[%clk 0:00:07.8]}
23... Nxb7 {[%clk 0:00:22.1]} 24. Nf3 {[%clk 0:00:04.2]} 24... Qxb4 {[%clk
0:00:21.7]} 25. Nh4 {[%clk 0:00:04.6]} 25... Nc5 {[%clk 0:00:11.6]} 26. Nf5
{[%clk 0:00:03.4]} 26... Ne6 {[%clk 0:00:11.7]} 27. Qg4 {[%clk 0:00:02.6]} 27...
Kh7 {[%clk 0:00:12.4]} 28. Ne7 {[%clk 0:00:02.5]} 28... Qd2 {[%clk 0:00:09.7]}
29. Qf5+ {[%clk 0:00:02.2]} 29... g6 {[%clk 0:00:09]} 30. Qf6 {[%clk 0:00:02]}
30... Nd4 {[%clk 0:00:06.1]} 31. Nxg6 {[%clk 0:00:01.6]} 31... Rg8 {[%clk
0:00:02.9]} 32. Qxf7+ {[%clk 0:00:01.5]} 32... Rg7 {[%clk 0:00:02.7]} 33. Nf8+
{[%clk 0:00:01.7]} 33... Kh8 {[%clk 0:00:01.8]} 34. Ng6+ {[%clk 0:00:01.7]}
34... Kh7 {[%clk 0:00:02.3]} 35. Nf8+ {[%clk 0:00:02.6]} 35... Kh8 {[%clk
0:00:02.8]} 36. Qf6 {[%clk 0:00:03.5]} 36... Ne2+ {[%clk 0:00:02.1]} 37. Kg2
{[%clk 0:00:03.3]} 37... Nf4+ {[%clk 0:00:01.7]} 38. Kh1 {[%clk 0:00:03.8]}
38... Qe2 {[%clk 0:00:01.8]} 39. Ng6+ {[%clk 0:00:01.1]} 1-0